[Event "Titled Tuesday Blitz August 08 Early 2023"]
[White "Novikova, Margarita"]
[Black "Nayak Rajesh"]
[WhiteFideId "14109689"]
[BlackFideId "35017152"]
[WhiteElo "2120"]
[BlackElo "2315"]
[Result "0-1"]
[Round "8"]
[TimeControl "180+1"]
[Date "2023.08.08"]
[WhiteClock "0:00:07"]
[BlackClock "0:00:12"]
[Board "188"]

1. d4 {[%clk 0:02:54]}  b5 {[%clk 0:02:57]} 2. e4 {[%clk 0:02:52]}  Bb7 {[%clk 0:02:55]} 3. Bd3 {[%clk 0:02:50]}  Nf6 {[%clk 0:02:53]} 4. f3 {[%clk 0:02:47]}  a6 {[%clk 0:02:49]} 5. c3 {[%clk 0:02:46]}  e6 {[%clk 0:02:49]} 6. Be3 {[%clk 0:02:46]}  Be7 {[%clk 0:02:49]} 7. Ne2 {[%clk 0:02:46]}  O-O {[%clk 0:02:49]} 8. Nd2 {[%clk 0:02:46]}  c5 {[%clk 0:02:48]} 9. O-O {[%clk 0:02:39]}  c4 {[%clk 0:02:46]} 10. Bb1 {[%clk 0:02:34]}  d6 {[%clk 0:02:44]} 11. e5 {[%clk 0:02:30]}  Nd5 {[%clk 0:02:34]} 12. Qc2 {[%clk 0:02:27]}  g6 {[%clk 0:02:31]} 13. Bh6 {[%clk 0:02:19]}  Bg5 {[%clk 0:02:20]} 14. Bxg5 {[%clk 0:02:08]}  Qxg5 {[%clk 0:02:19]} 15. f4 {[%clk 0:01:56]}  Qg4 {[%clk 0:02:10]} 16. Qe4 {[%clk 0:01:38]}  Ra7 {[%clk 0:01:39]} 17. Qf3 {[%clk 0:01:36]}  Qxf3 {[%clk 0:01:33]} 18. Nxf3 {[%clk 0:01:33]}  dxe5 {[%clk 0:01:28]} 19. fxe5 {[%clk 0:01:25]}  Nc6 {[%clk 0:01:24]} 20. Be4 {[%clk 0:01:09]}  Nce7 {[%clk 0:01:20]} 21. Ng3 {[%clk 0:01:01]}  h5 {[%clk 0:01:16]} 22. h4 {[%clk 0:00:59]}  Nf5 {[%clk 0:01:14]} 23. Bxf5 {[%clk 0:00:47]}  exf5 {[%clk 0:01:12]} 24. Rfe1 {[%clk 0:00:47]}  Re8 {[%clk 0:01:09]} 25. Ng5 {[%clk 0:00:44]}  Bc8 {[%clk 0:01:07]} 26. Re2 {[%clk 0:00:35]}  Rae7 {[%clk 0:01:05]} 27. Rae1 {[%clk 0:00:35]}  Nf4 {[%clk 0:00:51]} 28. Rd2 {[%clk 0:00:32]}  Bb7 {[%clk 0:00:42]} 29. Red1 {[%clk 0:00:32]}  Bd5 {[%clk 0:00:39]} 30. Nf1 {[%clk 0:00:31]}  Ne6 {[%clk 0:00:28]} 31. Nxe6 {[%clk 0:00:29]}  fxe6 {[%clk 0:00:27]} 32. Ne3 {[%clk 0:00:29]}  Rd8 {[%clk 0:00:28]} 33. g3 {[%clk 0:00:27]}  Kf7 {[%clk 0:00:28]} 34. Kf2 {[%clk 0:00:27]}  g5 {[%clk 0:00:27]} 35. hxg5 {[%clk 0:00:27]}  Kg6 {[%clk 0:00:28]} 36. Ng2 {[%clk 0:00:27]}  Kxg5 {[%clk 0:00:26]} 37. Nf4 {[%clk 0:00:27]}  h4 {[%clk 0:00:25]} 38. Ke3 {[%clk 0:00:21]}  Rh7 {[%clk 0:00:17]} 39. Rg1 {[%clk 0:00:20]}  h3 {[%clk 0:00:16]} 40. Rh2 {[%clk 0:00:18]}  Kg4 {[%clk 0:00:15]} 41. Nxd5 {[%clk 0:00:16]}  Rxd5 {[%clk 0:00:14]} 42. Kf2 {[%clk 0:00:15]}  b4 {[%clk 0:00:13]} 43. Rc1 {[%clk 0:00:15]}  bxc3 {[%clk 0:00:12]} 44. bxc3 {[%clk 0:00:15]}  Rb5 {[%clk 0:00:12]} 45. Rc2 {[%clk 0:00:15]}  Rhb7 {[%clk 0:00:11]} 46. Ke3 {[%clk 0:00:12]}  Rb1 {[%clk 0:00:10]} 47. Rhf2 {[%clk 0:00:11]}  Kxg3 {[%clk 0:00:09]} 48. Rfd2 {[%clk 0:00:11]}  Re1+ {[%clk 0:00:10]} 49. Re2 {[%clk 0:00:11]}  Rxe2+ {[%clk 0:00:10]} 50. Rxe2 {[%clk 0:00:12]}  h2 {[%clk 0:00:11]} 51. Re1 {[%clk 0:00:12]}  Kg2 {[%clk 0:00:11]} 52. Re2+ {[%clk 0:00:12]}  Kg3 {[%clk 0:00:11]} 53. Re1 {[%clk 0:00:12]}  Rb2 {[%clk 0:00:12]} 54. a4 {[%clk 0:00:12]}  f4+ {[%clk 0:00:12]} 55. Ke4 {[%clk 0:00:12]}  f3 {[%clk 0:00:12]} 56. d5 {[%clk 0:00:11]}  exd5+ {[%clk 0:00:12]} 57. Kxd5 {[%clk 0:00:11]}  f2 {[%clk 0:00:12]} 58. Rf1 {[%clk 0:00:11]}  Re2 {[%clk 0:00:12]} 59. e6 {[%clk 0:00:10]}  Re1 {[%clk 0:00:12]} 60. Rxf2 {[%clk 0:00:10]}  Kxf2 {[%clk 0:00:12]} 61. e7 {[%clk 0:00:10]}  h1=Q+ {[%clk 0:00:12]} 62. Kxc4 {[%clk 0:00:06]}  Qa8 {[%clk 0:00:13]} 63. Kb3 {[%clk 0:00:06]}  Rxe7 {[%clk 0:00:13]} 64. c4 {[%clk 0:00:07]}  Rb7+ {[%clk 0:00:13]} 65. Ka3 {[%clk 0:00:06]}  Qh8 {[%clk 0:00:13]} 66. a5 {[%clk 0:00:07]}  Qa1# {[%clk 0:00:12]} 0-1


[Site "https://www.chess.com"]

[Event "Titled Tuesday Blitz August 08 Early 2023"]
[White "Mitrovic, Darko R"]
[Black "Tosic, Srecko"]
[WhiteFideId "927023"]
[BlackFideId "924563"]
[WhiteElo "2140"]
[BlackElo "2307"]
[Result "0-1"]
[Round "8"]
[TimeControl "180+1"]
[Date "2023.08.08"]
[WhiteClock "0:00:00"]
[BlackClock "0:00:17"]
[Board "189"]

1. d4 {[%clk 0:02:55]}  e6 {[%clk 0:02:59]} 2. a3 {[%clk 0:02:52]}  d5 {[%clk 0:02:55]} 3. b3 {[%clk 0:02:52]}  Bd6 {[%clk 0:02:53]} 4. h3 {[%clk 0:02:51]}  f5 {[%clk 0:02:52]} 5. g3 {[%clk 0:02:50]}  Nd7 {[%clk 0:02:52]} 6. Bg2 {[%clk 0:02:47]}  Ngf6 {[%clk 0:02:51]} 7. e3 {[%clk 0:02:46]}  O-O {[%clk 0:02:49]} 8. Bb2 {[%clk 0:02:44]}  Ne4 {[%clk 0:02:45]} 9. Ne2 {[%clk 0:02:43]}  Qf6 {[%clk 0:02:45]} 10. c4 {[%clk 0:02:36]}  c6 {[%clk 0:02:45]} 11. Nd2 {[%clk 0:02:30]}  Kh8 {[%clk 0:02:42]} 12. Nf3 {[%clk 0:02:25]}  a5 {[%clk 0:02:32]} 13. h4 {[%clk 0:02:15]}  h6 {[%clk 0:02:31]} 14. h5 {[%clk 0:02:11]}  Kh7 {[%clk 0:02:24]} 15. Nf4 {[%clk 0:02:07]}  b5 {[%clk 0:02:14]} 16. cxb5 {[%clk 0:01:58]}  cxb5 {[%clk 0:02:15]} 17. Rc1 {[%clk 0:01:38]}  a4 {[%clk 0:01:44]} 18. O-O {[%clk 0:01:13]}  b4 {[%clk 0:01:33]} 19. axb4 {[%clk 0:00:57]}  a3 {[%clk 0:01:34]} 20. Ba1 {[%clk 0:00:57]}  Bxb4 {[%clk 0:01:34]} 21. Nd3 {[%clk 0:00:52]}  Bd6 {[%clk 0:01:19]} 22. Nc5 {[%clk 0:00:50]}  Qf7 {[%clk 0:01:10]} 23. Nd2 {[%clk 0:00:19]}  Nexc5 {[%clk 0:00:57]} 24. dxc5 {[%clk 0:00:18]}  Nxc5 {[%clk 0:00:55]} 25. b4 {[%clk 0:00:14]}  Nd3 {[%clk 0:00:52]} 26. Rc3 {[%clk 0:00:13]}  Nxb4 {[%clk 0:00:49]} 27. Nb3 {[%clk 0:00:09]}  Ba6 {[%clk 0:00:49]} 28. Re1 {[%clk 0:00:08]}  Be5 {[%clk 0:00:45]} 29. Nd4 {[%clk 0:00:06]}  Bc4 {[%clk 0:00:38]} 30. Bf1 {[%clk 0:00:04]}  Bxf1 {[%clk 0:00:35]} 31. Kxf1 {[%clk 0:00:05]}  Rfc8 {[%clk 0:00:34]} 32. Qd2 {[%clk 0:00:03]}  Bxd4 {[%clk 0:00:20]} 33. Qxd4 {[%clk 0:00:03]}  Nc6 {[%clk 0:00:20]} 34. Qd2 {[%clk 0:00:00]}  Ne7 {[%clk 0:00:17]} 0-1


[Site "https://www.chess.com"]

[Event "Titled Tuesday Blitz August 08 Early 2023"]
[White "rionelG"]
[Black "Mangialardo, Tiago Carvalho"]
[BlackFideId "2130718"]
[WhiteElo "2297"]
[BlackElo "2079"]
[Result "1-0"]
[Round "8"]
[TimeControl "180+1"]
[Date "2023.08.08"]
[WhiteClock "0:00:10"]
[BlackClock "0:00:00"]
[Board "191"]

1. e4 {[%clk 0:01:42]}  Nf6 {[%clk 0:03:00]} 2. e5 {[%clk 0:01:42]}  Nd5 {[%clk 0:03:00]} 3. c4 {[%clk 0:01:43]}  Nb6 {[%clk 0:03:00]} 4. d4 {[%clk 0:01:44]}  d6 {[%clk 0:02:59]} 5. exd6 {[%clk 0:01:45]}  exd6 {[%clk 0:03:00]} 6. Nc3 {[%clk 0:01:45]}  Be7 {[%clk 0:03:00]} 7. Bd3 {[%clk 0:01:44]}  O-O {[%clk 0:03:00]} 8. Nge2 {[%clk 0:01:45]}  Bg4 {[%clk 0:02:58]} 9. O-O {[%clk 0:01:45]}  Nc6 {[%clk 0:02:54]} 10. f3 {[%clk 0:01:45]}  Bh5 {[%clk 0:02:48]} 11. Be3 {[%clk 0:01:45]}  Re8 {[%clk 0:02:46]} 12. Qd2 {[%clk 0:01:37]}  d5 {[%clk 0:02:13]} 13. c5 {[%clk 0:01:37]}  Nc4 {[%clk 0:02:13]} 14. Bxc4 {[%clk 0:01:36]}  dxc4 {[%clk 0:02:09]} 15. d5 {[%clk 0:01:29]}  Nb4 {[%clk 0:01:43]} 16. Nf4 {[%clk 0:01:29]}  Bg5 {[%clk 0:01:31]} 17. Rae1 {[%clk 0:01:00]}  Bxf4 {[%clk 0:00:34]} 18. Bxf4 {[%clk 0:01:00]}  Nd3 {[%clk 0:00:34]} 19. Rxe8+ {[%clk 0:00:55]}  Qxe8 {[%clk 0:00:35]} 20. Bxc7 {[%clk 0:00:53]}  Nxc5 {[%clk 0:00:28]} 21. d6 {[%clk 0:00:52]}  Qd7 {[%clk 0:00:21]} 22. Nd5 {[%clk 0:00:47]}  Bg6 {[%clk 0:00:16]} 23. Re1 {[%clk 0:00:46]}  Ne6 {[%clk 0:00:14]} 24. Qa5 {[%clk 0:00:35]}  Re8 {[%clk 0:00:05]} 25. Qb4 {[%clk 0:00:12]}  Nxc7 {[%clk 0:00:04]} 26. Ne7+ {[%clk 0:00:12]}  Kf8 {[%clk 0:00:02]} 27. dxc7 {[%clk 0:00:12]}  Rxe7 {[%clk 0:00:03]} 28. Rxe7 {[%clk 0:00:11]}  Qd1+ {[%clk 0:00:00]} 29. Re1+ {[%clk 0:00:10]} 1-0


[Site "https://www.chess.com"]

[Event "Titled Tuesday Blitz August 08 Early 2023"]
[White "Verony64"]
[Black "UgarteCesar"]
[WhiteElo "2047"]
[BlackElo "2291"]
[Result "0-1"]
[Round "8"]
[TimeControl "180+1"]
[Date "2023.08.08"]
[WhiteClock "0:00:14"]
[BlackClock "0:00:17"]
[Board "192"]

1. d4 {[%clk 0:02:54]}  d5 {[%clk 0:03:00]} 2. c4 {[%clk 0:02:54]}  e6 {[%clk 0:02:59]} 3. cxd5 {[%clk 0:02:53]}  exd5 {[%clk 0:02:59]} 4. Nc3 {[%clk 0:02:53]}  c6 {[%clk 0:03:00]} 5. Qc2 {[%clk 0:02:52]}  Nf6 {[%clk 0:03:00]} 6. Bg5 {[%clk 0:02:52]}  Be7 {[%clk 0:03:00]} 7. e3 {[%clk 0:02:53]}  O-O {[%clk 0:03:00]} 8. Bd3 {[%clk 0:02:53]}  h6 {[%clk 0:02:56]} 9. Bh4 {[%clk 0:02:52]}  Re8 {[%clk 0:02:55]} 10. Nge2 {[%clk 0:02:52]}  b5 {[%clk 0:02:55]} 11. a3 {[%clk 0:02:52]}  a5 {[%clk 0:02:55]} 12. O-O {[%clk 0:02:50]}  Ba6 {[%clk 0:02:55]} 13. f3 {[%clk 0:02:43]}  Nh5 {[%clk 0:02:52]} 14. Bf2 {[%clk 0:02:43]}  Bg5 {[%clk 0:02:48]} 15. f4 {[%clk 0:02:38]}  Bh4 {[%clk 0:02:46]} 16. g3 {[%clk 0:02:36]}  Be7 {[%clk 0:02:43]} 17. g4 {[%clk 0:02:37]}  Nf6 {[%clk 0:02:42]} 18. h3 {[%clk 0:02:36]}  b4 {[%clk 0:02:38]} 19. axb4 {[%clk 0:02:34]}  Bxd3 {[%clk 0:02:37]} 20. Qxd3 {[%clk 0:02:34]}  Bxb4 {[%clk 0:02:35]} 21. Ng3 {[%clk 0:02:32]}  Nbd7 {[%clk 0:02:28]} 22. Nf5 {[%clk 0:02:25]}  Nf8 {[%clk 0:02:20]} 23. Rfc1 {[%clk 0:02:18]}  Qd7 {[%clk 0:01:56]} 24. Na4 {[%clk 0:02:17]}  h5 {[%clk 0:01:49]} 25. Nb6 {[%clk 0:02:15]}  Qe6 {[%clk 0:01:42]} 26. Nxa8 {[%clk 0:02:14]}  Rxa8 {[%clk 0:01:43]} 27. g5 {[%clk 0:02:09]}  Ne4 {[%clk 0:01:42]} 28. Ng3 {[%clk 0:02:01]}  Nxf2 {[%clk 0:01:43]} 29. Kxf2 {[%clk 0:01:59]}  Qxh3 {[%clk 0:01:43]} 30. Rh1 {[%clk 0:01:57]}  Qg4 {[%clk 0:01:43]} 31. Rxh5 {[%clk 0:01:49]}  Ng6 {[%clk 0:01:26]} 32. Rah1 {[%clk 0:01:48]}  Rb8 {[%clk 0:01:08]} 33. f5 {[%clk 0:01:37]}  Bd6 {[%clk 0:01:03]} 34. Ne2 {[%clk 0:01:30]}  Rxb2 {[%clk 0:00:58]} 35. R1h3 {[%clk 0:00:45]}  Rxe2+ {[%clk 0:00:24]} 36. Qxe2 {[%clk 0:00:44]}  Qxf5+ {[%clk 0:00:24]} 37. Rf3 {[%clk 0:00:37]}  Qg4 {[%clk 0:00:22]} 38. Rfh3 {[%clk 0:00:30]}  Qf5+ {[%clk 0:00:21]} 39. Kg2 {[%clk 0:00:24]}  Qe4+ {[%clk 0:00:20]} 40. Qf3 {[%clk 0:00:24]}  Qc2+ {[%clk 0:00:20]} 41. Qf2 {[%clk 0:00:24]}  Qe4+ {[%clk 0:00:20]} 42. Rf3 {[%clk 0:00:19]}  Qg4+ {[%clk 0:00:19]} 43. Kf1 {[%clk 0:00:16]}  Qxh5 {[%clk 0:00:19]} 44. Rxf7 {[%clk 0:00:17]}  Qxg5 {[%clk 0:00:18]} 45. Rd7 {[%clk 0:00:16]}  Bf8 {[%clk 0:00:16]} 46. Qf7+ {[%clk 0:00:16]}  Kh7 {[%clk 0:00:16]} 47. Rc7 {[%clk 0:00:16]}  Qxe3 {[%clk 0:00:14]} 48. Rxc6 {[%clk 0:00:15]}  Qd3+ {[%clk 0:00:14]} 49. Kg2 {[%clk 0:00:15]}  Qe4+ {[%clk 0:00:14]} 50. Kf2 {[%clk 0:00:14]}  a4 {[%clk 0:00:14]} 51. Rxg6 {[%clk 0:00:12]}  Qxg6 {[%clk 0:00:15]} 52. Qxf8 {[%clk 0:00:13]}  Qf6+ {[%clk 0:00:15]} 53. Qxf6 {[%clk 0:00:13]}  gxf6 {[%clk 0:00:16]} 54. Ke3 {[%clk 0:00:13]}  a3 {[%clk 0:00:16]} 55. Kd3 {[%clk 0:00:14]}  a2 {[%clk 0:00:17]} 56. Kc2 {[%clk 0:00:14]}  Kg6 {[%clk 0:00:17]} 0-1


[Site "https://www.chess.com"]

[Event "Titled Tuesday Blitz August 08 Early 2023"]
[White "Wisniowski, Natalie"]
[Black "Swicarz, Maciej"]
[WhiteFideId "30929261"]
[BlackFideId "1113585"]
[WhiteElo "2040"]
[BlackElo "2413"]
[Result "0-1"]
[Round "8"]
[TimeControl "180+1"]
[Date "2023.08.08"]
[WhiteClock "0:00:00"]
[BlackClock "0:00:48"]
[Board "194"]

1. e4 {[%clk 0:03:00]}  c5 {[%clk 0:02:59]} 2. d4 {[%clk 0:03:00]}  cxd4 {[%clk 0:03:00]} 3. c3 {[%clk 0:03:00]}  Nf6 {[%clk 0:02:59]} 4. e5 {[%clk 0:02:59]}  Nd5 {[%clk 0:02:59]} 5. Nf3 {[%clk 0:02:59]}  d6 {[%clk 0:02:59]} 6. Bb5+ {[%clk 0:02:54]}  Bd7 {[%clk 0:02:53]} 7. Bxd7+ {[%clk 0:02:51]}  Qxd7 {[%clk 0:02:53]} 8. cxd4 {[%clk 0:02:51]}  Nc6 {[%clk 0:02:53]} 9. O-O {[%clk 0:02:47]}  e6 {[%clk 0:02:51]} 10. Nc3 {[%clk 0:02:44]}  dxe5 {[%clk 0:02:51]} 11. Nxd5 {[%clk 0:02:33]}  Qxd5 {[%clk 0:02:50]} 12. dxe5 {[%clk 0:02:31]}  Rd8 {[%clk 0:02:50]} 13. Qe2 {[%clk 0:02:26]}  Bc5 {[%clk 0:02:46]} 14. Bg5 {[%clk 0:02:22]}  Be7 {[%clk 0:02:46]} 15. Rad1 {[%clk 0:02:14]}  Qa5 {[%clk 0:02:44]} 16. Rxd8+ {[%clk 0:01:48]}  Qxd8 {[%clk 0:02:45]} 17. Rd1 {[%clk 0:01:48]}  Qc7 {[%clk 0:02:40]} 18. Bxe7 {[%clk 0:01:44]}  Qxe7 {[%clk 0:02:40]} 19. h3 {[%clk 0:01:43]}  O-O {[%clk 0:02:38]} 20. Qb5 {[%clk 0:01:41]}  h6 {[%clk 0:02:34]} 21. Rd6 {[%clk 0:01:28]}  Rc8 {[%clk 0:02:31]} 22. Rd3 {[%clk 0:01:12]}  Rc7 {[%clk 0:02:26]} 23. Qa4 {[%clk 0:01:09]}  Rd7 {[%clk 0:02:22]} 24. Qb3 {[%clk 0:00:59]}  Qd8 {[%clk 0:02:15]} 25. Rxd7 {[%clk 0:00:54]}  Qxd7 {[%clk 0:02:16]} 26. Qa3 {[%clk 0:00:47]}  Qd5 {[%clk 0:02:11]} 27. Qa4 {[%clk 0:00:34]}  g6 {[%clk 0:01:59]} 28. Qf4 {[%clk 0:00:30]}  Qxa2 {[%clk 0:01:34]} 29. Qxh6 {[%clk 0:00:27]}  Qxb2 {[%clk 0:01:34]} 30. Kh2 {[%clk 0:00:06]}  Nxe5 {[%clk 0:01:16]} 31. Ng5 {[%clk 0:00:05]}  Qd4 {[%clk 0:01:11]} 32. Qh7+ {[%clk 0:00:04]}  Kf8 {[%clk 0:01:11]} 33. Qh8+ {[%clk 0:00:04]}  Ke7 {[%clk 0:01:10]} 34. Qh6 {[%clk 0:00:01]}  Qxf2 {[%clk 0:01:07]} 35. Qh7 {[%clk 0:00:01]}  Qf4+ {[%clk 0:01:06]} 36. Kh1 {[%clk 0:00:01]}  Qxg5 {[%clk 0:01:06]} 37. Qh8 {[%clk 0:00:01]}  Qc1+ {[%clk 0:01:04]} 38. Kh2 {[%clk 0:00:01]}  Qf4+ {[%clk 0:01:05]} 39. Kh1 {[%clk 0:00:01]}  a5 {[%clk 0:01:04]} 40. Qb8 {[%clk 0:00:01]}  Qe4 {[%clk 0:00:53]} 41. Kh2 {[%clk 0:00:01]}  a4 {[%clk 0:00:52]} 42. Qc7+ {[%clk 0:00:01]}  Nd7 {[%clk 0:00:50]} 43. Qc8 {[%clk 0:00:02]}  a3 {[%clk 0:00:49]} 44. Qc7 {[%clk 0:00:00]}  Qe5+ {[%clk 0:00:48]} 0-1


[Site "https://www.chess.com"]

[Event "Titled Tuesday Blitz August 08 Early 2023"]
[White "Petersson, Kjell"]
[Black "Rodriguez Santiago, Jaime"]
[WhiteFideId "1705148"]
[BlackFideId "3100898"]
[WhiteElo "2191"]
[BlackElo "2309"]
[Result "1/2-1/2"]
[Round "8"]
[TimeControl "180+1"]
[Date "2023.08.08"]
[WhiteClock "0:00:56"]
[BlackClock "0:01:12"]
[Board "197"]

1. d4 {[%clk 0:03:00]}  Nf6 {[%clk 0:02:59]} 2. Bf4 {[%clk 0:03:01]}  d5 {[%clk 0:02:58]} 3. e3 {[%clk 0:03:00]}  c5 {[%clk 0:02:57]} 4. c3 {[%clk 0:03:00]}  Nc6 {[%clk 0:02:57]} 5. Nd2 {[%clk 0:03:00]}  e6 {[%clk 0:02:58]} 6. Ngf3 {[%clk 0:02:59]}  cxd4 {[%clk 0:02:58]} 7. exd4 {[%clk 0:02:58]}  Nh5 {[%clk 0:02:59]} 8. Be3 {[%clk 0:02:58]}  Bd6 {[%clk 0:02:58]} 9. Ne5 {[%clk 0:02:57]}  g6 {[%clk 0:02:58]} 10. g4 {[%clk 0:02:58]}  Ng7 {[%clk 0:02:56]} 11. h4 {[%clk 0:02:58]}  f6 {[%clk 0:02:56]} 12. Nxc6 {[%clk 0:02:43]}  bxc6 {[%clk 0:02:54]} 13. h5 {[%clk 0:02:23]}  gxh5 {[%clk 0:02:49]} 14. Bh6 {[%clk 0:02:10]}  Qe7 {[%clk 0:02:40]} 15. Bxg7 {[%clk 0:01:59]}  Qxg7 {[%clk 0:02:39]} 16. Rxh5 {[%clk 0:01:56]}  Bd7 {[%clk 0:02:32]} 17. Be2 {[%clk 0:01:44]}  Rb8 {[%clk 0:02:28]} 18. Qc2 {[%clk 0:01:43]}  Ke7 {[%clk 0:02:22]} 19. O-O-O {[%clk 0:01:41]}  Be8 {[%clk 0:02:21]} 20. Rh4 {[%clk 0:01:32]}  Bg6 {[%clk 0:02:21]} 21. Bd3 {[%clk 0:01:30]}  e5 {[%clk 0:02:13]} 22. dxe5 {[%clk 0:01:28]}  fxe5 {[%clk 0:02:13]} 23. Bxg6 {[%clk 0:01:26]}  hxg6 {[%clk 0:02:09]} 24. Rdh1 {[%clk 0:01:24]}  Rxh4 {[%clk 0:02:06]} 25. Rxh4 {[%clk 0:01:25]}  e4 {[%clk 0:02:04]} 26. Nf1 {[%clk 0:01:24]}  Bf4+ {[%clk 0:02:02]} 27. Kb1 {[%clk 0:01:23]}  Qf6 {[%clk 0:01:48]} 28. Rh7+ {[%clk 0:01:21]}  Kd6 {[%clk 0:01:47]} 29. Ne3 {[%clk 0:01:17]}  Bxe3 {[%clk 0:01:43]} 30. fxe3 {[%clk 0:01:18]}  Qf1+ {[%clk 0:01:42]} 31. Qc1 {[%clk 0:01:18]}  Qd3+ {[%clk 0:01:42]} 32. Qc2 {[%clk 0:01:17]}  Qxe3 {[%clk 0:01:39]} 33. Qh2+ {[%clk 0:01:17]}  Kc5 {[%clk 0:01:37]} 34. Qxb8 {[%clk 0:01:12]}  Qd3+ {[%clk 0:01:30]} 35. Kc1 {[%clk 0:01:11]}  Qf1+ {[%clk 0:01:24]} 36. Kc2 {[%clk 0:01:11]}  Qd3+ {[%clk 0:01:24]} 37. Kb3 {[%clk 0:01:11]}  Qc4+ {[%clk 0:01:24]} 38. Ka3 {[%clk 0:01:04]}  Qa6+ {[%clk 0:01:24]} 39. Kb3 {[%clk 0:01:03]}  Qc4+ {[%clk 0:01:24]} 40. Kc2 {[%clk 0:01:02]}  Qd3+ {[%clk 0:01:24]} 41. Kc1 {[%clk 0:01:01]}  Qf1+ {[%clk 0:01:24]} 42. Kd2 {[%clk 0:01:01]}  Qf2+ {[%clk 0:01:11]} 43. Kd1 {[%clk 0:00:58]}  Qf1+ {[%clk 0:01:11]} 44. Kd2 {[%clk 0:00:58]}  Qf2+ {[%clk 0:01:12]} 45. Kd1 {[%clk 0:00:56]}  Qf1+ {[%clk 0:01:12]} 46. Kc2 {[%clk 0:00:56]}  Qe2+ {[%clk 0:01:12]} 47. Kb3 {[%clk 0:00:56]}  Qc4+ {[%clk 0:01:12]} 1/2-1/2


[Site "https://www.chess.com"]

[Event "Titled Tuesday Blitz August 08 Early 2023"]
[White "Goswami, Vedant"]
[Black "Maluco_do_Natal_00"]
[WhiteFideId "5003725"]
[WhiteElo "2288"]
[BlackElo "2071"]
[Result "1-0"]
[Round "8"]
[TimeControl "180+1"]
[Date "2023.08.08"]
[WhiteClock "0:01:02"]
[BlackClock "0:00:42"]
[Board "198"]

1. b3 {[%clk 0:02:42]}  e5 {[%clk 0:02:55]} 2. Bb2 {[%clk 0:02:41]}  d6 {[%clk 0:02:51]} 3. e3 {[%clk 0:02:37]}  Be6 {[%clk 0:02:51]} 4. c4 {[%clk 0:02:36]}  f5 {[%clk 0:02:50]} 5. d4 {[%clk 0:02:36]}  e4 {[%clk 0:02:48]} 6. d5 {[%clk 0:02:35]}  Bf7 {[%clk 0:02:47]} 7. Nh3 {[%clk 0:02:34]}  h6 {[%clk 0:02:45]} 8. Nd2 {[%clk 0:02:27]}  Nf6 {[%clk 0:02:43]} 9. Nf4 {[%clk 0:02:20]}  Qe7 {[%clk 0:02:37]} 10. h4 {[%clk 0:02:17]}  Nbd7 {[%clk 0:02:36]} 11. Be2 {[%clk 0:02:15]}  Ne5 {[%clk 0:02:28]} 12. h5 {[%clk 0:02:13]}  a5 {[%clk 0:02:15]} 13. Qc2 {[%clk 0:02:10]}  b6 {[%clk 0:02:12]} 14. a3 {[%clk 0:02:07]}  Rc8 {[%clk 0:01:50]} 15. O-O-O {[%clk 0:02:04]}  c6 {[%clk 0:01:50]} 16. dxc6 {[%clk 0:01:59]}  Rxc6 {[%clk 0:01:47]} 17. f3 {[%clk 0:01:51]}  exf3 {[%clk 0:01:43]} 18. Bxf3 {[%clk 0:01:48]}  Rc8 {[%clk 0:01:35]} 19. Rhe1 {[%clk 0:01:46]}  Nxf3 {[%clk 0:01:25]} 20. gxf3 {[%clk 0:01:45]}  Nxh5 {[%clk 0:01:23]} 21. Kb1 {[%clk 0:01:25]}  b5 {[%clk 0:01:03]} 22. Qxf5 {[%clk 0:01:24]}  Rc5 {[%clk 0:00:53]} 23. Qd3 {[%clk 0:01:04]}  Qf6 {[%clk 0:00:42]} 24. Bxf6 {[%clk 0:01:02]} 1-0


[Site "https://www.chess.com"]

[Event "Titled Tuesday Blitz August 08 Early 2023"]
[White "LLariMarc"]
[Black "cthake"]
[WhiteElo "2286"]
[BlackElo "1829"]
[Result "1-0"]
[Round "8"]
[TimeControl "180+1"]
[Date "2023.08.08"]
[WhiteClock "0:02:00"]
[BlackClock "0:00:15"]
[Board "201"]

1. d4 {[%clk 0:02:52]}  Nf6 {[%clk 0:02:57]} 2. Nf3 {[%clk 0:02:53]}  e6 {[%clk 0:02:49]} 3. Bg5 {[%clk 0:02:50]}  Be7 {[%clk 0:02:47]} 4. e3 {[%clk 0:02:50]}  d5 {[%clk 0:02:47]} 5. Nbd2 {[%clk 0:02:40]}  O-O {[%clk 0:02:46]} 6. Bd3 {[%clk 0:02:40]}  h6 {[%clk 0:02:45]} 7. Bh4 {[%clk 0:02:40]}  c5 {[%clk 0:02:44]} 8. c3 {[%clk 0:02:40]}  cxd4 {[%clk 0:02:39]} 9. exd4 {[%clk 0:02:41]}  Nc6 {[%clk 0:02:38]} 10. O-O {[%clk 0:02:42]}  Qb6 {[%clk 0:02:19]} 11. Qc2 {[%clk 0:02:39]}  Bd7 {[%clk 0:02:14]} 12. a3 {[%clk 0:02:35]}  Rac8 {[%clk 0:02:13]} 13. Rae1 {[%clk 0:02:35]}  Na5 {[%clk 0:01:56]} 14. Ne5 {[%clk 0:02:33]}  Bb5 {[%clk 0:01:47]} 15. Re3 {[%clk 0:02:28]}  Bxd3 {[%clk 0:01:45]} 16. Nxd3 {[%clk 0:02:27]}  Qxd4 {[%clk 0:01:29]} 17. Nf3 {[%clk 0:02:18]}  Qb6 {[%clk 0:01:23]} 18. Nfe5 {[%clk 0:02:18]}  Rfd8 {[%clk 0:01:12]} 19. Rg3 {[%clk 0:02:16]}  d4 {[%clk 0:01:00]} 20. c4 {[%clk 0:02:15]}  Qc7 {[%clk 0:00:43]} 21. Rc1 {[%clk 0:02:09]}  Nc6 {[%clk 0:00:42]} 22. Nxc6 {[%clk 0:02:09]}  Qxc6 {[%clk 0:00:41]} 23. b4 {[%clk 0:02:09]}  b6 {[%clk 0:00:40]} 24. Ne5 {[%clk 0:02:08]}  Qe8 {[%clk 0:00:39]} 25. f4 {[%clk 0:02:07]}  Kh8 {[%clk 0:00:37]} 26. Rf1 {[%clk 0:02:04]}  Nd7 {[%clk 0:00:30]} 27. Bxe7 {[%clk 0:02:03]}  Qxe7 {[%clk 0:00:30]} 28. Nxd7 {[%clk 0:02:03]}  Rxd7 {[%clk 0:00:30]} 29. Qd3 {[%clk 0:02:03]}  Rcd8 {[%clk 0:00:29]} 30. Re1 {[%clk 0:02:03]}  Qf6 {[%clk 0:00:29]} 31. Re5 {[%clk 0:02:03]}  Rd6 {[%clk 0:00:24]} 32. Rf3 {[%clk 0:02:01]}  a6 {[%clk 0:00:22]} 33. g3 {[%clk 0:02:00]}  g6 {[%clk 0:00:20]} 34. h4 {[%clk 0:02:00]}  Qf5 {[%clk 0:00:15]} 35. Rxf5 {[%clk 0:02:00]} 1-0


[Site "https://www.chess.com"]

[Event "Titled Tuesday Blitz August 08 Early 2023"]
[White "Grigoryan, Meri"]
[Black "LuxLinster"]
[WhiteFideId "13300571"]
[WhiteElo "2159"]
[BlackElo "2264"]
[Result "0-1"]
[Round "8"]
[TimeControl "180+1"]
[Date "2023.08.08"]
[WhiteClock "0:00:15"]
[BlackClock "0:01:33"]
[Board "202"]

1. d4 {[%clk 0:03:00]}  Nf6 {[%clk 0:02:59]} 2. Nf3 {[%clk 0:03:01]}  b6 {[%clk 0:02:59]} 3. Bf4 {[%clk 0:02:59]}  Bb7 {[%clk 0:02:59]} 4. e3 {[%clk 0:02:59]}  e6 {[%clk 0:03:00]} 5. Bd3 {[%clk 0:02:59]}  d5 {[%clk 0:03:00]} 6. O-O {[%clk 0:02:59]}  c5 {[%clk 0:03:00]} 7. c3 {[%clk 0:02:59]}  Nc6 {[%clk 0:03:00]} 8. Nbd2 {[%clk 0:02:58]}  Bd6 {[%clk 0:03:00]} 9. Ne5 {[%clk 0:02:58]}  O-O {[%clk 0:03:00]} 10. Nxc6 {[%clk 0:02:51]}  Bxc6 {[%clk 0:03:00]} 11. Bxd6 {[%clk 0:02:50]}  Qxd6 {[%clk 0:03:01]} 12. Nf3 {[%clk 0:02:51]}  Nd7 {[%clk 0:02:51]} 13. Rc1 {[%clk 0:02:47]}  e5 {[%clk 0:02:50]} 14. dxe5 {[%clk 0:02:47]}  Nxe5 {[%clk 0:02:50]} 15. Bb1 {[%clk 0:02:28]}  Rad8 {[%clk 0:02:36]} 16. Nxe5 {[%clk 0:02:25]}  Qxe5 {[%clk 0:02:37]} 17. Qg4 {[%clk 0:02:25]}  Rd6 {[%clk 0:02:29]} 18. Rfe1 {[%clk 0:02:16]}  Rh6 {[%clk 0:02:25]} 19. f4 {[%clk 0:02:11]}  Qe7 {[%clk 0:02:19]} 20. Re2 {[%clk 0:02:04]}  Re8 {[%clk 0:02:03]} 21. Rce1 {[%clk 0:02:02]}  Bb5 {[%clk 0:01:47]} 22. Rf2 {[%clk 0:01:59]}  Re6 {[%clk 0:01:39]} 23. Qh5 {[%clk 0:00:15]}  g6 {[%clk 0:01:33]} 0-1


[Site "https://www.chess.com"]